bitfinex/quotes_SOLUSD_20250616
["timestamp","ask_amount","ask_price","bid_price","bid_amount"]
[1750045082398,5.56,156.03,156.01,18.933972]
[1750045085097,5.56,156.03,155.99,21.9761054]
[1750045087476,8.6021334,156.03,155.99,18.933972]
[1750045087765,8.6021334,156.03,155.98,0.14216157]
[1750045087766,3.0421334,156.01,155.98,0.14216157]
[1750045087980,3.0421334,156.0,155.98,0.14216157]
[1750045088193,3.0421334,156.0,155.98,0.28432314]
[1750045088885,3.0421334,156.0,155.98,0.14216157]
[1750045089279,3.0421334,156.0,155.98,0.28432314]
[1750045089497,3.0421334,156.01,155.98,0.28432314]
[1750045089702,7.8154246,156.01,155.98,0.28432314]
[1750045089904,3.0421334,156.01,155.98,0.28432314]
[1750045090102,7.8154246,156.01,155.98,0.28432314]
[1750045090296,3.0421334,156.01,155.98,0.28432314]
[1750045090494,3.0421334,155.99,155.94,3.0421334]
[1750045090891,3.0421334,155.99,155.95,0.14216157]
[1750045091216,3.0421334,155.99,155.94,3.0421334]
[1750045091399,7.8154246,155.99,155.94,3.0421334]
[1750045091601,3.0421334,155.98,155.94,18.64964886]
[1750045091799,3.0421334,155.98,155.95,0.28432314]
[1750045092394,3.0421334,155.98,155.95,0.14216157]
[1750045092595,3.0421334,155.98,155.95,0.28432314]
[1750045092807,3.0421334,155.96,155.89,139.62379704]
[1750045092987,3.0421334,155.96,155.92,18.64964886]
[1750045093389,3.0421334,155.96,155.93,0.14216157]
[1750045093592,3.0421334,155.96,155.9,18.79181043]
[1750045093793,26.0,155.97,155.89,16.72259704]
[1750045093794,3.0421334,155.94,155.89,16.72259704]
[1750045093992,3.0421334,155.93,155.9,18.64964886]
[1750045094225,3.0421334,155.93,155.91,0.28432314]
[1750045094918,3.0421334,155.93,155.89,18.64964886]
[1750045095131,3.0421334,155.93,155.9,0.28432314]
[1750045095620,5.56,155.94,155.86,0.14216157]
[1750045095621,3.0421334,155.91,155.86,21.9761054]
[1750045095826,3.0421334,155.91,155.86,21.69178226]
[1750045096122,3.0421334,155.91,155.87,0.28432314]
[1750045096311,3.0421334,155.91,155.85,18.64964886]
[1750045096312,3.0421334,155.9,155.85,18.64964886]
[1750045096506,3.0421334,155.9,155.86,0.28432314]
[1750045097015,26.0,155.91,155.86,0.28432314]
[1750045097016,26.0,155.91,155.86,4.90316624]
[1750045097219,30.76100467,155.91,155.86,4.90316624]
[1750045097525,30.76100467,155.91,155.87,0.14216157]
[1750045098225,30.76100467,155.91,155.85,23.41065353]
[1750045098430,30.76100467,155.91,155.86,0.28432314]
[1750045098732,30.76100467,155.91,155.86,0.14216157]
[1750045099024,30.76100467,155.91,155.86,0.28432314]
[1750045099429,1.6551,155.93,155.86,5.18748938]
[1750045099635,4.76100467,155.92,155.88,18.933972]
[1750045101117,30.76100467,155.93,155.88,23.69497667]
[1750045102920,26.0,155.93,155.88,0.28432314]
[1750045103229,26.0,155.93,155.88,5.04532781]
[1750045103429,5.56,155.94,155.9,4.76100467]
[1750045103904,5.56,155.94,155.91,0.28432314]
[1750045104410,5.56,155.94,155.91,5.04532781]
[1750045107037,5.56,155.94,155.93,0.28432314]
[1750045108409,5.56,155.94,155.9,18.64964886]
[1750045108614,5.56,155.94,155.91,5.04532781]
[1750045108810,5.56,155.94,155.93,23.69497667]
[1750045109063,5.56,155.94,155.93,23.83713824]
[1750045109213,10.32100467,156.0,155.93,23.83713824]
[1750045109514,36.32100467,156.0,155.96,0.28432314]
[1750045109714,10.32100467,156.0,155.96,0.28432314]
[1750045110113,26.0,155.99,155.96,0.28432314]
[1750045110326,10.32100467,156.0,155.96,0.28432314]
[1750045110539,5.56,156.0,155.96,5.04532781]
[1750045110759,5.56,156.0,155.97,4.76100467]
[1750045111520,5.56,156.0,155.96,5.04532781]
[1750045114261,5.56,156.0,155.93,19.07613357]
[1750045114431,5.56,156.0,155.97,0.28432314]
[1750045118123,4.76100467,155.99,155.94,0.28432314]
[1750045118342,4.76100467,155.99,155.94,5.04532781]
[1750045118947,5.56,156.0,155.97,0.28432314]
[1750045119523,5.56,156.0,155.97,5.04532781]
[1750045121556,5.56,156.0,155.96,4.76100467]
[1750045121864,5.56,156.0,155.97,0.28432314]
[1750045124263,5.56,156.0,155.97,4.76100467]
[1750045125773,5.56,156.0,155.99,5.04532781]
[1750045126866,5.56,156.0,155.99,23.69497667]
[1750045130954,5.56,156.0,155.99,18.933972]
[1750045131153,5.56,156.0,155.99,23.69497667]
[1750045131374,5.56,156.0,155.99,18.933972]
[1750045131580,5.56,156.0,155.99,23.69497667]
[1750045133794,5.56,156.0,155.99,0.28432314]
[1750045134087,5.56,156.0,155.96,18.64964886]
[1750045134088,10.32100467,156.0,155.96,18.64964886]
[1750045134258,10.32100467,156.0,155.97,0.28432314]
[1750045134983,10.32100467,156.0,155.96,18.64964886]
[1750045135164,10.32100467,156.0,155.95,4.76100467]
[1750045135565,10.32100467,156.0,155.96,0.28432314]
[1750045136161,4.76100467,155.99,155.96,0.28432314]
[1750045136357,10.32100467,156.0,155.96,0.28432314]
[1750045137373,4.76100467,155.98,155.94,4.76100467]
[1750045137578,4.76100467,155.98,155.94,0.14216157]
[1750045138157,4.76100467,155.97,155.93,4.76100467]
[1750045138358,4.76100467,155.96,155.91,23.41065353]
[1750045138564,26.0,155.97,155.9,18.64964886]
[1750045138784,26.0,155.97,155.94,0.28432314]
[1750045139379,9.54193235,155.99,155.94,5.04532781]
[1750045139575,26.0,155.99,155.96,4.76100467]
[1750045139885,26.0,155.99,155.95,4.76100467]
[1750045142492,26.0,155.99,155.96,4.76100467]
[1750045142992,17.11462513,156.0,155.97,0.28432314]
[1750045143174,17.11462513,156.0,155.99,4.76100467]
[1750045144093,17.11462513,156.0,155.95,18.933972]
[1750045144387,17.11462513,156.0,155.96,4.76100467]
[1750045145894,17.11462513,156.0,155.97,4.76100467]
[1750045147579,17.11462513,156.0,155.96,4.76100467]
[1750045149373,17.11462513,156.0,155.97,4.76100467]
[1750045152194,17.11462513,156.0,155.95,18.933972]
[1750045152394,17.11462513,156.0,155.97,4.76100467]
[1750045152707,17.11462513,156.0,155.99,4.76100467]
[1750045153597,17.11462513,156.0,155.98,4.76100467]
[1750045160003,17.11462513,156.0,155.97,0.28432314]
[1750045160180,17.11462513,156.0,155.97,5.04532781]
[1750045162384,21.91555414,156.0,155.97,5.04532781]
[1750045162601,17.11462513,156.0,155.97,5.04532781]
[1750045164208,17.11462513,156.0,155.98,4.76100467]
[1750045164782,17.11462513,156.0,155.97,0.28432314]
[1750045164980,26.0,155.97,155.89,1.6555]
[1750045165193,4.80092901,155.97,155.94,3.04230502]
[1750045165396,5.56,155.97,155.95,3.04230502]
[1750045165811,5.56,155.97,155.94,3.04230502]
[1750045168899,5.56,155.97,155.93,0.28432314]
[1750045169089,5.56,155.97,155.94,4.75590528]
[1750045170888,4.80092901,155.99,155.96,4.75590528]
[1750045171113,17.11462513,156.0,155.94,18.933972]
[1750045171114,27.47555414,156.0,155.98,4.75590528]
[1750045171399,22.67462513,156.0,155.98,4.75590528]
[1750045171605,27.47555414,156.0,155.98,4.75590528]
[1750045171804,22.67462513,156.0,155.98,4.25590528]
[1750045172614,22.67462513,156.0,155.97,4.75590528]
[1750045173708,27.47555414,156.0,155.97,0.28432314]
[1750045173906,4.80092901,155.99,155.97,0.28432314]
[1750045174116,4.80092901,155.99,155.96,0.28432314]
[1750045174325,4.80092901,155.99,155.96,5.04022842]
[1750045175620,4.80092901,155.99,155.97,4.75590528]
[1750045176000,4.80092901,155.99,155.96,5.04022842]
[1750045177434,22.67462513,156.0,155.97,4.75590528]
[1750045177644,4.80092901,155.99,155.97,4.75590528]
[1750045177927,22.67462513,156.0,155.97,4.75590528]
[1750045178122,27.47555414,156.0,155.97,4.75590528]
[1750045178325,22.67462513,156.0,155.97,4.75590528]
[1750045178504,27.47555414,156.0,155.97,4.75590528]
[1750045178705,22.67462513,156.0,155.97,4.75590528]
[1750045178925,27.47555414,156.0,155.97,4.75590528]
[1750045179097,22.67462513,156.0,155.97,4.75590528]
[1750045179300,27.47555414,156.0,155.97,4.75590528]
[1750045179520,22.67462513,156.0,155.97,4.75590528]
[1750045179732,27.47555414,156.0,155.98,5.04022842]
[1750045179944,22.67462513,156.0,155.99,5.04022842]
[1750045185002,17.11462513,156.0,155.99,23.68987728]
[1750045189445,17.11462513,156.0,155.99,112.88987728]
[1750045195142,17.11462513,156.0,155.99,138.98987728]
[1750045195539,17.11462513,156.0,155.99,49.78987728]
[1750045198231,17.11462513,156.0,155.99,23.68987728]
[1750045200132,17.11462513,156.0,155.99,0.28432314]
[1750045200336,17.11462513,156.0,155.97,93.95590528]
[1750045200544,17.11462513,156.0,155.97,4.75590528]
[1750045209255,17.11462513,156.0,155.97,0.28432314]
[1750045209566,17.11462513,156.0,155.96,0.28432314]
[1750045213553,21.91191425,156.0,155.96,0.28432314]
[1750045213759,17.11462513,156.0,155.96,0.28432314]
[1750045214078,5.54,155.99,155.96,0.28432314]
[1750045215070,5.54,155.99,155.95,21.97708686]
[1750045217862,5.54,155.99,155.98,3.04311486]
[1750045218562,5.54,155.99,155.98,3.327438]
[1750045218955,17.11462513,156.0,155.98,3.327438]
[1750045226793,17.11462513,156.0,155.98,0.28432314]
[1750045235805,17.11462513,156.0,155.98,3.327438]
[1750045237407,17.11462513,156.0,155.99,0.28432314]
[1750045239685,17.11462513,156.0,155.99,3.327438]
[1750045240279,17.11462513,156.0,155.99,0.28432314]
[1750045241811,17.11462513,156.0,155.99,3.327438]
[1750045241969,17.11462513,156.0,155.99,0.28432314]
[1750045247577,17.11462513,156.0,155.99,3.327438]
[1750045248183,17.11462513,156.0,155.98,21.97708686]
[1750045252288,17.11462513,156.0,155.99,3.327438]
[1750045254204,17.11462513,156.0,155.99,0.28432314]
[1750045254808,17.11462513,156.0,155.99,3.327438]
[1750045255811,10.33728912,156.02,155.99,3.327438]
[1750045256295,5.54,156.02,156.0,3.327438]
[1750045256605,5.54,156.02,156.01,3.327438]
[1750045256797,4.79728912,156.05,156.02,18.933972]
[1750045256978,25.13339403,156.07,156.02,18.933972]
[1750045256979,10.33728912,156.06,156.04,3.04311486]
[1750045257181,4.79728912,156.05,156.04,3.04311486]
[1750045257409,4.79728912,156.05,156.03,3.04311486]
[1750045258689,10.33728912,156.06,156.03,3.04311486]
[1750045259398,10.33728912,156.06,156.04,3.04311486]
[1750045261108,5.54,156.06,156.05,3.04311486]
[1750045262185,10.33728912,156.06,156.05,3.04311486]
[1750045262389,5.54,156.06,156.05,3.04311486]
[1750045263616,25.13339403,156.07,156.06,0.28432314]
[1750045263802,25.13339403,156.07,156.06,3.327438]
[1750045265320,25.13339403,156.07,156.06,0.28432314]
[1750045270951,25.13339403,156.07,155.99,89.2]
[1750045271117,29.93028996,156.07,156.03,3.04311486]
[1750045271318,29.93028996,156.07,156.04,3.04311486]
[1750045273212,25.13339403,156.07,156.04,3.04311486]
[1750045273414,25.13339403,156.07,156.05,0.28432314]
[1750045280045,25.13339403,156.07,156.05,18.933972]
[1750045282162,25.13339403,156.07,156.04,0.14216157]
[1750045282328,25.13339403,156.07,156.05,18.933972]
[1750045284222,29.04311486,156.09,156.05,18.933972]
[1750045285338,5.54,156.08,156.05,18.933972]
[1750045286951,3.04311486,156.07,156.02,92.24311486]
[1750045287246,3.04311486,156.07,156.03,0.28432314]
[1750045289452,8.58311486,156.08,156.03,3.327438]
[1750045289951,13.37235231,156.08,156.03,3.327438]
[1750045292351,8.58311486,156.08,156.03,3.327438]
[1750045292753,13.37235231,156.08,156.03,3.327438]
[1750045293250,8.58311486,156.08,156.03,3.327438]
[1750045293457,13.37235231,156.08,156.03,3.327438]
[1750045293759,8.58311486,156.08,156.03,3.327438]
[1750045294127,13.37235231,156.08,156.03,3.327438]
[1750045294545,8.58311486,156.08,156.03,3.327438]
[1750045294744,13.37235231,156.08,156.03,3.327438]
[1750045295149,4.78923745,156.07,156.03,3.327438]
[1750045295353,13.37235231,156.08,156.03,3.327438]
[1750045297359,4.78923745,156.07,156.03,3.327438]
[1750045299963,4.78923745,156.06,156.03,3.327438]
[1750045300165,4.78923745,156.07,156.03,3.327438]
[1750045300346,4.78923745,156.06,156.03,3.327438]
[1750045300547,4.78923745,156.05,156.03,3.327438]
[1750045300747,4.78923745,156.07,156.03,3.327438]
[1750045300949,4.78923745,156.06,156.03,3.327438]
[1750045301155,4.78923745,156.05,156.03,3.327438]
[1750045301350,8.58311486,156.08,156.03,3.327438]
[1750045301351,4.78923745,156.07,156.03,3.327438]
[1750045301556,4.78923745,156.06,156.03,3.327438]
[1750045301754,4.78923745,156.05,156.03,3.327438]
[1750045301950,4.78923745,156.07,156.03,3.327438]
[1750045302261,4.78923745,156.06,156.03,3.327438]
[1750045302468,4.78923745,156.05,156.03,3.327438]
[1750045302769,4.78923745,156.07,156.03,3.327438]
[1750045302953,4.78923745,156.06,156.03,3.327438]
[1750045303153,4.78923745,156.05,156.03,3.327438]
[1750045303455,4.80773537,156.04,156.03,3.327438]
[1750045303655,4.80773537,156.07,156.03,3.327438]
[1750045303963,4.80773537,156.06,156.03,3.327438]
[1750045304160,4.80773537,156.05,156.03,3.327438]
[1750045304475,4.80773537,156.04,156.03,3.327438]
[1750045304653,4.80773537,156.07,156.03,3.327438]
[1750045304856,4.80773537,156.06,156.03,3.327438]
[1750045305060,4.80773537,156.05,156.02,3.327438]
[1750045305267,4.80773537,156.04,156.02,3.327438]
[1750045305567,4.80773537,156.07,156.02,3.327438]
[1750045305768,4.80773537,156.06,156.02,3.327438]
[1750045305971,4.80773537,156.05,156.02,3.327438]
[1750045306145,4.80773537,156.04,156.02,0.28432314]
[1750045306345,4.80773537,156.06,156.02,0.28432314]
[1750045306663,4.80773537,156.05,156.02,0.28432314]
[1750045306969,4.80773537,156.04,156.02,0.28432314]
[1750045307168,4.80773537,156.06,156.02,0.28432314]
[1750045307353,4.80773537,156.05,156.02,0.28432314]
[1750045307554,4.80773537,156.04,156.02,0.28432314]
[1750045307759,4.80773537,156.03,156.02,0.28432314]
[1750045307961,4.80773537,156.06,156.02,0.28432314]
[1750045308163,4.80773537,156.05,156.02,0.28432314]
[1750045308479,4.80773537,156.04,156.02,0.28432314]
[1750045308681,4.80773537,156.03,156.02,0.28432314]
[1750045308975,3.04311486,156.05,155.99,89.2]
[1750045309169,3.04311486,156.03,155.98,18.64964886]
[1750045309353,4.80773537,156.02,155.98,18.64964886]
[1750045309675,4.80773537,156.01,155.97,93.82701486]
[1750045309966,4.80773537,156.02,155.98,0.28432314]
[1750045310175,3.04311486,156.03,155.98,0.28432314]
[1750045310176,4.80773537,156.01,155.98,0.28432314]
[1750045310367,4.80773537,156.02,155.98,0.28432314]
[1750045311050,4.80773537,156.02,155.98,3.327438]
[1750045311372,7.85085023,156.03,155.98,3.327438]
[1750045311574,4.80773537,156.02,155.98,3.327438]
[1750045311760,7.85085023,156.03,155.98,3.327438]
[1750045311957,4.80773537,156.03,156.0,3.327438]
[1750045312166,30.80773537,156.04,156.0,3.327438]
[1750045312460,4.80773537,156.03,156.0,3.327438]
[1750045312651,30.80773537,156.04,156.0,3.327438]
[1750045312852,5.54,156.03,156.0,3.327438]
[1750045315481,5.54,156.03,156.0,0.28432314]
[1750045315985,10.34773537,156.03,156.0,3.327438]
[1750045316151,5.54,156.03,156.0,3.327438]
[1750045316780,30.80773537,156.04,156.0,3.327438]
[1750045317083,31.54,156.04,156.0,3.327438]
[1750045317879,36.34773537,156.04,156.0,3.327438]
[1750045319170,36.34773537,156.04,156.0,0.28432314]
[1750045319171,39.39085023,156.04,156.0,0.28432314]
[1750045319374,4.80773537,156.03,156.0,0.28432314]
[1750045319564,34.58311486,156.04,156.0,0.28432314]
[1750045319967,39.39085023,156.04,156.0,0.28432314]
[1750045320184,4.80773537,156.03,156.0,0.28432314]
[1750045320363,4.79750826,156.03,156.0,0.28432314]
[1750045320887,34.58311486,156.04,156.0,0.28432314]
[1750045321269,31.54,156.04,156.0,0.28432314]
[1750045321485,31.54,156.04,156.0,3.327438]
[1750045322294,4.79673541,156.06,156.04,18.933972]
[1750045322591,5.54,156.07,156.06,18.933972]
[1750045322888,5.54,156.07,156.06,3.327438]
[1750045323586,5.54,156.07,156.06,0.28432314]
[1750045323786,5.54,156.07,156.06,3.327438]
[1750045324897,5.54,156.07,156.06,5.03269162]
[1750045331499,5.54,156.07,156.06,23.68234048]
[1750045337321,5.54,156.07,156.05,89.2]
[1750045337477,5.54,156.07,156.05,4.74836848]
[1750045339084,5.54,156.07,156.06,4.74836848]
[1750045340378,5.54,156.07,156.05,5.03269162]
[1750045340801,5.54,156.07,156.06,5.03269162]
[1750045340976,5.52,156.1,156.07,0.28432314]
[1750045341181,5.52,156.1,156.08,4.74836848]
[1750045341412,5.52,156.1,156.07,5.03269162]
[1750045342006,10.31450103,156.1,156.07,5.03269162]
[1750045342206,5.52,156.1,156.07,5.03269162]
[1750045344199,5.52,156.1,156.08,4.74836848]
[1750045352817,5.52,156.1,156.08,3.03836963]
[1750045353131,5.52,156.1,156.09,3.32269277]
[1750045353426,5.52,156.1,156.09,21.97234163]
[1750045355707,5.52,156.1,156.09,22.1145032]
[1750045356914,5.52,156.1,156.09,23.82193007]
[1750045358219,5.52,156.1,156.09,113.02193007]
[1750045360044,5.52,156.1,156.09,93.9457965]
[1750045360250,5.52,156.1,156.09,112.59544536]
[1750045360428,5.52,156.1,156.09,112.8797685]
[1750045364057,5.52,156.1,156.09,23.6797685]
[1750045370861,10.2657965,156.1,156.08,89.2]
[1750045371105,10.2657965,156.1,156.04,18.64964886]
[1750045371106,37.06380518,156.09,156.04,18.64964886]
[1750045371254,4.7457965,156.08,156.02,4.7457965]
[1750045371549,32.31800868,156.09,156.0,30.7857965]
[1750045371550,30.7457965,156.05,156.0,30.7857965]
[1750045371755,30.7457965,156.05,156.01,18.933972]
[1750045372155,30.7457965,156.05,156.0,30.7857965]
[1750045372538,30.7457965,156.05,156.01,18.933972]
[1750045373041,30.7457965,156.05,156.01,18.64964886]
[1750045373240,30.7457965,156.05,156.02,0.28432314]
[1750045376072,26.0,156.05,156.02,0.28432314]
[1750045376364,30.7457965,156.05,156.01,18.933972]
[1750045382953,26.0,156.05,156.01,21.9753545]
[1750045383265,29.0413825,156.05,156.01,18.933972]
[1750045383468,29.0413825,156.05,156.01,21.9753545]
[1750045384251,29.0413825,156.05,156.01,18.933972]
[1750045387257,29.0413825,156.05,156.01,3.32570564]
[1750045388380,26.0,156.05,156.01,3.32570564]
[1750045392362,26.0,156.05,155.98,0.14216157]
[1750045392363,29.0413825,156.05,155.98,0.14216157]
[1750045392665,3.0413825,156.03,155.98,21.69103136]
[1750045392874,3.0413825,156.03,155.99,0.28432314]
[1750045393079,3.0413825,156.03,155.99,0.14216157]
[1750045393595,3.0413825,156.04,155.99,0.28432314]
[1750045394867,3.0413825,156.03,155.99,0.28432314]
[1750045395083,3.0413825,156.04,155.99,0.28432314]
[1750045395777,3.0413825,156.02,155.98,0.28432314]
[1750045395984,5.52,156.01,155.97,107.84964886]
[1750045396302,3.0413825,156.0,155.95,89.2]
[1750045396458,3.0413825,156.0,155.94,107.84964886]
[1750045396658,3.0413825,156.0,155.95,0.28432314]
[1750045396877,3.0413825,156.0,155.94,110.89103136]
[1750045397077,3.0413825,156.0,155.95,0.28432314]
[1750045397280,3.0413825,156.0,155.94,110.89103136]
[1750045397584,3.0413825,156.0,155.95,0.28432314]
[1750045398085,3.0413825,155.99,155.94,110.89103136]
[1750045398386,3.0413825,155.99,155.95,0.28432314]
[1750045398709,3.0413825,155.99,155.95,0.14216157]
[1750045398858,4.75634254,155.99,155.95,0.28432314]
[1750045399460,5.52,156.01,155.95,0.28432314]
[1750045399662,5.52,156.01,155.95,5.04066568]
[1750045399663,10.27634254,156.01,155.95,5.04066568]
[1750045400261,10.27634254,156.01,155.96,4.75634254]
[1750045400468,4.75634254,156.05,156.0,4.75634254]
[1750045400669,5.52,156.04,156.01,4.75634254]
[1750045400873,5.52,156.04,156.03,4.75634254]
[1750045401585,5.52,156.04,156.03,5.04066568]
[1750045401781,5.52,156.04,156.03,23.83247611]
[1750045409392,5.52,156.11,156.05,0.14216157]
[1750045409692,5.52,156.11,156.1,5.04066568]
[1750045410386,5.52,156.11,156.07,18.64964886]
[1750045410585,5.52,156.11,156.08,23.69031454]
[1750045412692,5.52,156.11,156.09,4.75634254]
[1750045414796,5.52,156.11,156.08,18.933972]
[1750045415101,5.52,156.11,156.08,4.75634254]
[1750045415698,5.52,156.11,156.08,0.28432314]
[1750045420499,5.52,156.11,156.08,5.04066568]
[1750045421788,5.52,156.11,156.09,4.75634254]
[1750045425473,5.52,156.11,156.1,0.28432314]
[1750045425676,5.52,156.11,156.1,23.69031454]
[1750045428004,5.52,156.11,156.1,23.83247611]
[1750045428224,20.56526866,156.14,156.11,19.07613357]
[1750045428528,5.52,156.18,156.14,19.07613357]
[1750045428823,5.52,156.18,156.17,4.75634254]
[1750045429179,5.52,156.18,156.17,5.04066568]
[1750045429506,5.52,156.18,156.17,23.69031454]
[1750045432498,5.52,156.18,156.17,23.83247611]
[1750045432912,66.52,156.25,156.18,19.07613357]
[1750045433216,66.52,156.25,156.21,4.75634254]
[1750045433217,5.52,156.24,156.21,4.75634254]
[1750045440190,18.65572313,156.29,156.25,0.14216157]
[1750045440397,18.65572313,156.29,156.26,4.75634254]
[1750045440595,18.65572313,156.29,156.26,0.28432314]
[1750045440809,18.65572313,156.29,156.24,26.02]
[1750045440810,23.41206567,156.29,156.24,26.02]
[1750045441014,4.75634254,156.28,156.24,26.02]
[1750045441806,4.75634254,156.26,156.19,27.5269]
[1750045442133,4.75634254,156.25,156.2,49.4059914]
[1750045442594,4.75634254,156.25,156.21,0.14216157]
[1750045442801,4.75634254,156.25,156.21,0.28432314]
[1750045443103,4.75634254,156.24,156.21,0.28432314]
[1750045443508,26.0,156.26,156.21,0.28432314]
[1750045443509,4.75634254,156.25,156.21,0.28432314]
[1750045447725,4.75634254,156.25,156.2,26.0]
[1750045448217,4.75634254,156.21,156.16,18.64964886]
[1750045448419,4.75634254,156.2,156.16,18.64964886]
[1750045448624,30.75634254,156.21,156.16,23.4059914]
[1750045448925,30.75634254,156.21,156.17,0.28432314]
[1750045449439,26.0,156.21,156.17,0.28432314]
[1750045450343,30.75634254,156.23,156.18,4.75634254]
[1750045450504,26.0,156.23,156.19,4.75634254]
[1750045450907,26.0,156.23,156.18,4.75634254]
[1750045450908,30.75634254,156.23,156.18,4.75634254]
[1750045452308,30.75634254,156.23,156.19,0.28432314]
[1750045455317,4.75634254,156.22,156.18,18.933972]
[1750045458515,4.75634254,156.22,156.17,0.28432314]
[1750045458734,4.75634254,156.21,156.17,0.28432314]
[1750045463546,30.75634254,156.21,156.17,0.28432314]
[1750045469268,26.0,156.21,156.18,4.75634254]
[1750045469435,10.27634254,156.24,156.19,0.28432314]
[1750045469630,26.0,156.23,156.19,0.28432314]
[1750045469864,4.75634254,156.22,156.17,4.75634254]
[1750045470068,4.75634254,156.21,156.18,0.28432314]
[1750045470258,30.75634254,156.21,156.18,0.28432314]
[1750045471262,26.0,156.21,156.18,0.28432314]
[1750045477070,30.76389121,156.21,156.18,0.28432314]
[1750045479860,4.76389121,156.21,156.18,5.04066568]
[1750045480178,5.5,156.22,156.19,4.75634254]
[1750045480354,10.26389121,156.22,156.19,4.75634254]
[1750045480556,5.5,156.22,156.19,4.75634254]
[1750045480962,10.26389121,156.22,156.19,4.75634254]
[1750045481154,5.5,156.22,156.19,4.75634254]
[1750045481366,10.26389121,156.22,156.19,4.75634254]
[1750045481562,5.5,156.22,156.19,4.75634254]
[1750045481770,10.26389121,156.22,156.19,4.75634254]
[1750045481972,5.5,156.22,156.19,4.75634254]
[1750045482162,10.26389121,156.22,156.19,4.75634254]
[1750045482363,5.5,156.22,156.19,4.75634254]
[1750045482573,10.26389121,156.22,156.19,4.75634254]
[1750045482773,5.5,156.22,156.19,4.75634254]
[1750045482982,10.26389121,156.22,156.19,4.75634254]
[1750045483197,5.5,156.22,156.19,4.75634254]
[1750045483360,10.26389121,156.22,156.19,4.75634254]
[1750045483558,5.5,156.22,156.19,4.75634254]
[1750045483872,10.26389121,156.22,156.19,4.75634254]
[1750045484057,5.5,156.22,156.19,4.75634254]
[1750045484257,10.26389121,156.22,156.19,4.75634254]
[1750045484457,5.5,156.22,156.19,4.75634254]
[1750045484673,10.26389121,156.22,156.18,5.04066568]
[1750045484874,5.5,156.22,156.18,5.04066568]
[1750045485183,10.26389121,156.22,156.18,5.04066568]
[1750045486481,5.5,156.22,156.2,4.75634254]
[1750045486858,10.26389121,156.22,156.2,4.75634254]
[1750045487075,5.5,156.22,156.2,4.75634254]
[1750045487583,10.26389121,156.22,156.2,4.75634254]
[1750045487885,5.5,156.22,156.2,4.75634254]
[1750045488084,10.26389121,156.22,156.2,4.75634254]
[1750045488285,5.5,156.22,156.2,4.75634254]
[1750045488468,10.26389121,156.22,156.2,4.75634254]
[1750045488671,5.5,156.22,156.2,4.75634254]
[1750045488979,10.26389121,156.22,156.2,0.28432314]
[1750045489278,5.5,156.22,156.2,0.28432314]
[1750045489492,10.26389121,156.22,156.2,5.04066568]
[1750045489656,5.5,156.22,156.2,5.04066568]
[1750045490057,10.26389121,156.22,156.2,5.04066568]
[1750045490257,5.5,156.22,156.2,5.04066568]
[1750045490692,10.26389121,156.22,156.21,23.69031454]
[1750045490859,5.5,156.22,156.21,23.83247611]
[1750045491062,5.5,156.22,156.21,49.83247611]
[1750045494485,5.5,156.22,156.21,49.69031454]
[1750045494662,5.5,156.22,156.21,23.69031454]
[1750045494865,5.5,156.22,156.21,49.69031454]
[1750045496363,5.5,156.22,156.17,90.8112]
[1750045496590,10.25634254,156.22,156.17,93.95634254]
[1750045496784,4.75634254,156.21,156.18,26.0]
[1750045496991,9.52023375,156.21,156.18,0.28432314]
[1750045497488,9.52023375,156.21,156.16,4.75634254]
[1750045497690,4.76389121,156.2,156.17,18.64964886]
[1750045497985,4.76389121,156.2,156.18,0.28432314]
[1750045498387,9.52023375,156.2,156.16,89.2]
[1750045498592,9.52023375,156.19,156.14,18.64964886]
[1750045498798,9.52023375,156.18,156.14,26.0]
[1750045498968,4.75634254,156.18,156.14,0.28432314]
[1750045499362,9.52023375,156.18,156.13,4.75634254]
[1750045499565,4.75634254,156.18,156.13,4.75634254]
[1750045499788,4.75634254,156.18,156.14,0.28432314]
[1750045499990,9.52023375,156.18,156.14,0.28432314]
[1750045500294,4.75634254,156.18,156.14,0.28432314]
[1750045500482,4.75634254,156.18,156.13,4.75634254]
[1750045500683,4.75634254,156.16,156.12,18.64964886]
[1750045500887,9.52023375,156.16,156.13,0.14216157]
[1750045501088,4.75634254,156.16,156.13,0.14216157]
[1750045501290,4.75634254,156.16,156.13,0.28432314]
[1750045501669,4.76389121,156.17,156.13,5.04066568]
[1750045501888,26.0,156.18,156.13,5.04066568]
[1750045502076,35.52023375,156.18,156.13,5.04066568]